Cogmind - Beta 15 @@@ ROGUE MODE // 2025.05.06 @ 14:27:29 Player: Minty Result: Destroyed by G-67 Veteran with Plasma Rifle Performance ------------- Evolutions (7) 3500 Regions Visited (24) 4800 Robots Destroyed (218) 1090 Value Destroyed (9386) 9386 Prototype IDs (70) 1400 Alien Tech Used (0) 0 Bonus (6916) 6916 TOTAL SCORE: 27092 Bonus ------- High Alert Combat Kills 1904 Follower Combat Kills 3561 Network Hubs Disabled 200 Aligned with FarCom 300 Met Data Miner 300 Met Imprinter 300 Was Imprinted 300 Built Enhanced Grunts 300 A7 Reached Mainframe 300 Friendly Fire -549 Cogmind --------- Core Integrity 0/1300 Matter 55/300 Energy 20/150 System Corruption 0% Temperature Cool (60) Movement Flying (15) Location -3/Research Parts ------- > --- POWER (2) -------- Micro Nuclear Core > --- PROPULSION (6) --- Improved Surge Thruster Improved Surge Thruster Improved Surge Thruster > --- UTILITY (9) ------ Advanced Targeting Computer Improved Reaction Control System > --- WEAPON (4) ------- (None) > --- INVENTORY (5) ---- Long-range Sensor Array Firepult Linear Accelerator Peak State ------------ > --- POWER ------------ Cooled Deuterium Engine Mini Fusion Reactor > --- PROPULSION ------- Centrium Heavy Treads Centrium Heavy Treads Centrium Heavy Treads > --- UTILITY ---------- Improved Cooling System Large Storage Unit Advanced Target Analyzer Advanced Target Analyzer Centrium Medium Armor Plating Centrium Medium Armor Plating Centrium Medium Armor Plating Advanced Dynamic Insulation System Long-range Tractor Beam > --- WEAPON ----------- Helical Railgun Enhanced Gauss Cannon Enhanced Hardcell Cannon Enhanced Hardcell Cannon > --- INVENTORY -------- Zionite Light DM Reactor Zionite Heavy DM Reactor IFF Parser Improved Focal Shield Advanced Field Recycling Unit Zionite Phaser-M Firepult Precision Rocket Launcher Scatter Rocket Array Scatter Rocket Array Smartbomb Launcher Shock Maul [Rating: 169] Favorites ----------- Power Micro Nuclear Core Engine Cooled Deuterium Engine Power Core Micro Nuclear Core Reactor Zionite Light DM Reactor Propulsion Centrium Heavy Treads Treads Centrium Heavy Treads Leg Aluminum Leg Wheel Wheel Hover Unit Aerolev Unit Flight Unit VTOL Module Utility Targeting Computer Device Improved Cooling System Storage Medium Storage Unit Processor Targeting Computer Hackware Improved System Shield Protection Centrium Medium Armor Plating Weapon Gauss Rifle Energy Gun Arc Projector Energy Cannon Cooled Plasma Cannon Ballistic Gun Gauss Rifle Ballistic Cannon Enhanced Hardcell Cannon Launcher Grenade Launcher Impact Weapon Shock Maul Slashing Weapon Master Tearclaws Piercing Weapon CR-A16's Pointy Stick Build | -11 -10 -10 -10 -9 -8 -7 -7 -7 -7 -6 -6 -6 -6 -6 -6 -6 -5 -5 -5 -5 -5 -5 -4 -3 ------- Run | Yrd Mat Min Exi Min Mat Fac Low Low Zio Pro Fac Was Fac Low Low Dat Pro Fac Ext Cet Arc Hub Fac Res Slots Evolved 14 | . . . . . 4 2 . . . . 2 . . . . . . 2 . . . . 2 2 Power 1 | . . . . . . . . . . . . . . . . . . . . . . . 1 . Propulsion 4 | . . . . . 1 1 . . . . 1 . . . . . . . . . . . 1 . Utility 7 | . . . . . 2 1 . . . . . . . . . . . 2 . . . . . 2 Weapon 2 | . . . . . 1 . . . . . 1 . . . . . . . . . . . . . Parts Attached 184 | . 1 1 4 . 7 25 2 5 3 2 28 1 19 6 . . 2 22 8 10 3 7 2 26 Power 15 | . . . . . 1 4 . . . . 3 . 1 . . . . 1 1 . . 1 . 3 Engine 4 | . . . . . 1 1 . . . . 1 . . . . . . . . . . 1 . . Core 6 | . . . . . . 3 . . . . 1 . . . . . . 1 . . . . . 1 Reactor 5 | . . . . . . . . . . . 1 . 1 . . . . . 1 . . . . 2 Propulsion 44 | . . . 2 . 3 5 2 2 1 1 7 . 3 . . . . 7 . 4 1 1 . 5 Treads 8 | . . . 2 . . . . . . . . . . . . . . . . 3 1 1 . 1 Leg 1 | . . . . . . . . 1 . . . . . . . . . . . . . . . . Wheel 2 | . . . . . . . . . . . 1 . . . . . . . . . . . . 1 Hover 27 | . . . . . 3 5 . . 1 1 6 . 3 . . . . 7 . 1 . . . . Flight 6 | . . . . . . . 2 1 . . . . . . . . . . . . . . . 3 Utility 64 | . 1 1 . . 3 8 . 1 . . 12 . 8 1 . . 1 11 2 3 2 1 . 9 Device 26 | . . . . . 2 4 . . . . 3 . 4 . . . . 5 1 . 2 1 . 4 Storage 7 | . . 1 . . . 1 . . . . 1 . . 1 . . . 1 1 . . . . 1 Processor 19 | . . . . . 1 3 . 1 . . 4 . 1 . . . 1 4 . . . . . 4 Hackware 2 | . . . . . . . . . . . 1 . 1 . . . . . . . . . . . Protection 10 | . 1 . . . . . . . . . 3 . 2 . . . . 1 . 3 . . . . Artifact . | . . . . . . . . . . . . . . . . . . . . . . . . . Weapon 61 | . . . 2 . . 8 . 2 2 1 6 1 7 5 . . 1 3 5 3 . 4 2 9 Energy Gun 14 | . . . . . . 4 . . . . . . . 4 . . 1 . 2 1 . . . 2 Energy Cannon 6 | . . . . . . . . 1 . . 1 . 3 . . . . . . . . 1 . . Ballistic Gun 10 | . . . . . . 2 . 1 . . 3 . . 1 . . . . . 2 . . . 1 Ballistic Cannon 14 | . . . . . . 1 . . . . 1 . . . . . . . 3 . . 3 2 4 Launcher 13 | . . . 2 . . 1 . . . 1 . 1 3 . . . . 3 . . . . . 2 Special Weapon . | . . . . . . . . . . . . . . . . . . . . . . . . . Impact Weapon 2 | . . . . . . . . . . . 1 . 1 . . . . . . . . . . . Slashing Weapon 1 | . . . . . . . . . 1 . . . . . . . . . . . . . . . Piercing Weapon 1 | . . . . . . . . . 1 . . . . . . . . . . . . . . . Special Melee Weapon . | . . . . . . . . . . . . . . . . . . . . . . . . . Unidentified Prototypes 30 | . . . . . 1 2 . . . . 8 . 4 . . . . . 1 4 . 3 . 7 Corrupted Parts 8 | . . . . . . 1 . 1 . . . . . . . . . . . 5 1 . . . System Corruption 37 | . . . . . . 5 . 10 . . . . . . . . . . . 21 1 . . . Parts Lost 55 | . . . . . . 8 3 2 . . 5 1 7 1 . . . 7 1 . . 1 . 19 Power 5 | . . . . . . . . . . . 1 . 1 . . . . . . . . 1 . 2 Propulsion 17 | . . . . . . 2 2 2 . . 2 . 3 . . . . 2 . . . . . 4 Utility 18 | . . . . . . 1 . . . . 2 1 2 1 . . . 2 1 . . . . 8 Weapon 15 | . . . . . . 5 1 . . . . . 1 . . . . 3 . . . . . 5 Highest Loss Streak 14 | . . . . . . 4 2 1 . . 5 1 2 1 . . . 5 1 . . 1 . 14 To Critical Strikes . | . . . . . . . . . . . . . . . . . . . . . . . . . Average Backups 8 | . 7 9 7 6 5 5 5 5 4 5 5 5 5 6 9 10 11 12 12 10 10 11 12 10 Power . | . 1 2 2 3 2 1 1 . . . . . . . . . . . . . . . . 1 Propulsion . | . 4 4 1 . . . . . . . . . . . 1 1 1 1 3 1 1 1 1 . Utility 2 | . . . . . . . 1 1 1 . . 1 . . 1 1 1 5 3 3 3 3 5 2 Weapon 4 | . 1 2 2 2 2 2 2 1 2 2 3 4 4 5 7 8 9 5 4 6 6 6 6 6 Tool/Special . | . . . . . . . . . . . . . . . . . . . . . . . . . Unused Backups 26 | . . 2 2 . 4 1 . 3 1 1 3 . 2 2 . . . 1 . . . 1 . 3 Power 8 | . . . 1 . 4 1 . 1 . . . . . . . . . . . . . . . 1 Propulsion 1 | . . . . . . . . . . . . . . . . . . . . . . . . 1 Utility 12 | . . 2 1 . . . . 2 1 1 1 . . 2 . . . . . . . 1 . 1 Weapon 4 | . . . . . . . . . . . 1 . 2 . . . . 1 . . . . . . Tool/Special 1 | . . . . . . . . . . . 1 . . . . . . . . . . . . . Average Slot Usage (%) 82 | . 86 100 100 100 75 84 94 87 76 84 75 93 80 82 80 56 64 78 83 71 87 87 77 76 Engine 2 | . 14 14 14 14 9 . . . . . 2 . . . . . . . . . . 2 5 3 Core 2 | . . . . . . 6 7 7 7 7 2 . . . . . . 3 4 . . . . . Reactor 1 | . . . . . . . . . . . 1 6 5 6 6 6 6 1 . 4 5 2 . 2 Treads 5 | . . . 16 28 9 . . . . . . . . . . . . . . 9 16 17 14 12 Leg 1 | . 28 28 11 . . . . . . . . . . . . . . . . . . . . . Hover 10 | . . . . . 12 28 18 7 11 22 24 26 20 20 20 20 20 17 23 3 . . . . Flight 3 | . . . . . . . 10 13 15 7 1 . . . . . . . . . . . . . Device 6 | . . . . . 4 7 7 7 7 7 3 . 5 6 6 6 6 9 13 9 9 5 5 13 Storage 7 | . 14 14 14 14 9 7 7 7 7 7 7 13 13 11 6 6 6 5 5 5 5 5 5 3 Processor 13 | . . . . . 3 13 23 23 23 23 15 13 6 6 6 6 11 16 17 11 11 11 10 15 Protection 6 | . 1 14 14 14 9 2 . . . . 1 6 4 6 6 6 6 2 2 10 12 17 14 5 Energy Gun 2 | . . . . . . 6 3 . . . . . . 17 26 3 2 14 3 4 11 2 . 1 Energy Cannon 1 | . . . . . . . . . . . 2 6 12 3 . . . . . . . 3 4 . Ballistic Gun 5 | . 28 28 12 . . 2 15 18 . . 2 13 2 . . . 3 . . 1 11 2 . 2 Ballistic Cannon 2 | . . . . . . . . . . . . . . . . . . . 2 . . 13 15 10 Launcher 2 | . . . 15 28 18 7 . . . . . . . . . . . 1 1 . . . . . Peak Build Rating 169 | . 7 8 14 14 28 51 51 52 44 40 82 79 87 96 72 69 91 85 92 117 121 123 136 169 Average Rating 70 | . 6 7 11 14 20 40 45 38 33 36 46 78 77 76 72 58 77 72 77 96 118 119 133 137 On Entrance 58 | 6 6 7 8 14 14 28 51 42 38 37 36 79 79 79 72 72 65 72 81 78 117 121 118 136 Naked Turns . | . . . . . . . . . . . . . . . . . . . . . . . . . Heaviest Build 134 | 11 14 19 22 22 23 34 28 29 29 20 53 49 50 48 48 40 50 66 63 83 83 95 107 134 Greatest Support 240 | 20 20 20 40 40 40 34 34 17 16 22 55 55 55 50 50 50 50 50 49 160 188 188 240 240 Greatest Overweight (x) 3 | . . . . . 2 1 1 3 2 1 1 . 1 . . . . 1 1 1 . . . 3 Average Overweight (x) . | . . . . . . . . 2 1 . . . . . . . . . . . . . . . Largest Inventory Capacity 20 | . 8 10 10 10 10 20 10 10 10 10 10 10 10 15 15 15 15 15 15 15 15 15 15 15 Average Capacity 11 | . 8 9 10 10 10 10 10 10 10 10 10 10 10 10 15 15 15 15 15 15 15 15 15 12 Most Carried 15 | . 8 10 10 10 10 10 10 10 10 10 10 10 10 13 13 15 15 15 15 15 15 15 15 15 Average Carried 11 | . 7 9 9 10 9 9 9 9 9 10 9 9 9 9 13 14 12 14 14 14 14 14 14 12 Final Capacity 15 | 8 8 10 10 10 10 10 10 10 10 10 10 10 10 15 15 15 15 15 15 15 15 15 15 5 Final Carried 15 | 6 8 10 10 10 10 10 10 10 10 10 10 9 10 13 13 15 13 15 15 14 14 14 15 4 Class Distribution -------------------- 24% | Scavenger-Mutant 18% | Scavenger-Tank 17% | Mutant 12% | Scavenger-Gunner 6% | Gunner 5% | Messiah-Mutant 5% | Messiah-Gunner 3% | Commander-Mutant Dominant Class ---------------- Mutant | -10/Materials Mutant | -10/Mines Mutant | -10/Exiles Mutant | -9/Mines Scout | -8/Materials Mutant | -7/Factory Scavenger-Mutant | -7/Lower Caves Scavenger-Gunner | -7/Lower Caves Scavenger-Mutant | -7/Zion Scavenger-Mutant | -6/Proximity Caves Scavenger-Mutant | -6/Factory Messiah-Gunner | -6/Waste Messiah-Mutant | -6/Factory Messiah-Gunner | -6/Lower Caves Gunner | -6/Lower Caves Mutant | -6/Data Miner Gunner | -5/Proximity Caves Gunner | -5/Factory Commander-Mutant | -5/Extension Scavenger-Mutant | -5/Cetus Scavenger-Tank | -5/Archives Scavenger-Tank | -5/Hub_04(d) Scavenger-Tank | -4/Factory Scavenger-Gunner | -3/Research Resources | -11 -10 -10 -10 -9 -8 -7 -7 -7 -7 -6 -6 -6 -6 -6 -6 -6 -5 -5 -5 -5 -5 -5 -4 -3 ----------- Run | Yrd Mat Min Exi Min Mat Fac Low Low Zio Pro Fac Was Fac Low Low Dat Pro Fac Ext Cet Arc Hub Fac Res Matter Collected 5912 | 181 37 78 40 20 174 572 120 479 76 20 381 110 317 79 . . 117 12 489 267 246 508 392 1197 Remotely 716 | . . . . . . . . . . . . . . . . . . . . . . . . 716 Salvage Created 8548 | . 71 48 . 65 513 681 116 719 . 104 533 205 1224 67 . . 247 291 499 80 334 897 352 1502 Parts 332 | . 5 1 . 2 26 43 8 10 . 2 17 4 30 1 . . 8 11 17 5 19 41 15 67 Haulers Intercepted 9 | . . . . . 1 1 . . . . . . 3 . . . . 1 . . . 3 . . Recyclers Shooed 5 | . . . . . . . . . . . . . 2 . . . . 1 . . . 1 . 1 Parts Field Recycled 31 | . . . . . . . . . . . . . . . . . . 11 . . . . 9 11 Retrieved Matter 925 | . . . . . . . . . . . . . . . . . . 346 . . . . 79 500 Parts Self-Destructed 22 | . . . . . . . 6 2 3 3 . . . 2 1 . 5 . . . . . . . Prevented 9 | . . . . . . . 2 1 . 5 . . . 1 . . . . . . . . . . Kills | -11 -10 -10 -10 -9 -8 -7 -7 -7 -7 -6 -6 -6 -6 -6 -6 -6 -5 -5 -5 -5 -5 -5 -4 -3 ------- Run | Yrd Mat Min Exi Min Mat Fac Low Low Zio Pro Fac Was Fac Low Low Dat Pro Fac Ext Cet Arc Hub Fac Res Combat Hostiles Destroyed 150 | . 2 1 . 2 15 19 4 14 . . 5 1 12 2 . . 4 2 8 1 . 12 12 34 Melee 3 | . . . . . . . . . . . 2 . . . . . . . 1 . . . . . Guns 31 | . 2 1 . . . 6 4 3 . . . . . 1 . . 4 2 1 . . 1 . 6 Cannons 46 | . . . . . . . . 1 . . 1 . 8 . . . . . 2 . . 11 10 13 AOE 51 | . . . . 2 15 12 . 3 . . . 1 3 . . . . . . . . . 2 13 Classes Destroyed 24 | . 1 . . 1 7 3 . 2 . 1 1 1 3 . . . . . . . . 1 . 3 Worker 17 | . . . . . 3 . . . . . 3 . 4 . . . . 1 . . . 1 . 5 Builder 6 | . . . . . 2 2 . . . . . . . . . . . . 1 . . . . 1 Tunneler 3 | . . . . . . . . . . . . . 1 . . . . 1 . . . . . 1 Hauler 9 | . . . . . 1 1 . . . . . . 3 . . . . 1 . . . 3 . . Recycler 9 | . . . . . 1 1 . . . . 1 . 3 . . . . . . . . . 1 2 Mechanic 1 | . . . . . . . . . . . . . . . . . . . . . . . . 1 Operator 14 | . . . . . . . . . . . . . 2 . . . . 2 . . 9 1 . . Watcher 6 | . . . . . 1 1 . . . . . . . . . . . 1 . . . 2 . 1 Swarmer 24 | . . . . . 4 3 3 . . . . . 1 . . . . . . . . . 8 5 Cutter 2 | . . . . . . . . . . . . . . . . . . . . . . . . 2 Grunt 67 | . 2 1 . 1 10 12 1 5 . . 4 . 7 1 . . 3 2 3 . . 6 . 9 Brawler 3 | . . . . 1 . . . . . . . . . . . . . . . . . . . 2 Duelist 2 | . . . . . 1 1 . . . . . . . . . . . . . . . . . . Protector 1 | . . . . . . . . . . . . . . . . . . . . . . . . 1 Sentry 8 | . . . . . . 1 . . . . . . 1 . . . . . 1 . . 2 2 1 Hunter 15 | . . . . . . 1 . . . . . . . . . . 1 . 2 . . . 2 9 Programmer 11 | . . . . . . 1 . . . . 1 . 3 . . . . . . . . 2 . 4 Heavy 2 | . . . . . . . . . . . . . . . . . . . . . . 1 . 1 Behemoth 4 | . . . . . . . . 1 . . . . . . . . . . 2 . . 1 . . Compactor 1 | . . . . . . . . . . . . 1 . . . . . . . . . . . . Cetus Guard 1 | . . . . . . . . . . . . . . . . . . . . 1 . . . . Z-Courier 1 | . . . . . . . . . . . . . . . . . . . . . . . . 1 Z-Light 1 | . . . . . . . . . . . 1 . . . . . . . . . . . . . Decomposer 1 | . . . . . . . . 1 . . . . . . . . . . . . . . . . Samaritan 2 | . . . . . . . . . . 2 . . . . . . . . . . . . . . Master Thief 5 | . . . . . . . . 4 . . . . . 1 . . . . . . . . . . Thug 1 | . . . . . . . . 1 . . . . . . . . . . . . . . . . Savage 3 | . . . . . . . . 3 . . . . . . . . . . . . . . . . Martyr 1 | . . . . . . . . . . . . . 1 . . . . . . . . . . . Wizard 1 | . . . . . . . . . . . . . . . . . . . . . . 1 . . Best Kill Streak 19 | . 2 1 . 2 7 6 3 4 . 1 4 1 5 1 . . 3 2 2 1 2 4 6 19 Combat Bots Only 12 | . 2 1 . 2 5 6 3 4 . . 4 1 3 1 . . 3 2 2 1 . 3 6 12 Max Kills in Single Turn 5 | . 1 1 . 2 5 3 1 3 . 1 2 1 3 1 . . 1 2 1 1 1 2 2 4 Gunslinging 1 | . . . . . . . . . . . . . . . . . . . . . . . . 1 Exploded 4 | . . . . 2 4 3 . 1 . . . 1 2 . . . . . . . . . 2 2 Melee 1 | . . . . . . . . . . . 1 . . . . . . . 1 . . . . . Uniques/NPCs Destroyed . | . . . . . . . . . . . . . . . . . . . . . . . . . Combat | -11 -10 -10 -10 -9 -8 -7 -7 -7 -7 -6 -6 -6 -6 -6 -6 -6 -5 -5 -5 -5 -5 -5 -4 -3 -------- Run | Yrd Mat Min Exi Min Mat Fac Low Low Zio Pro Fac Was Fac Low Low Dat Pro Fac Ext Cet Arc Hub Fac Res Hostile Shots Fired 962 | . 18 7 . 3 12 146 18 23 . . 38 . 68 11 2 . 16 7 13 15 . 53 104 408 Missed 314 | . 9 2 . 1 5 55 5 7 . . 10 . 19 3 2 . 6 3 6 6 . 22 28 125 Hits 648 | . 9 5 . 2 7 91 13 16 . . 28 . 49 8 . . 10 4 7 9 . 31 76 283 Melee 7 | . . . . . . 1 . 2 . . . . . 1 . . . . . . . . . 3 Projectile 641 | . 9 5 . 2 7 90 13 14 . . 28 . 49 7 . . 10 4 7 9 . 31 76 280 AOE 2 | . . 1 . . . . . . . . . . . . . . . . . . . . . 1 Critical Strikes 25 | . 1 . . . . 2 . 2 . . 3 . 1 . . . . 1 1 1 . 2 2 9 Part Disruptions 3 | . . . . . . . . 2 . . . . . . . . . . . . . 1 . . Damage Taken 12708 | . 118 80 . 43 143 1071 169 405 . . 492 62 1063 119 . . 398 407 330 246 . 940 1251 5371 Core 2166 | . 21 11 . . 16 148 33 93 . . 179 . 171 17 . . 27 6 28 81 . . 16 1319 Absorbed by Shields 77 | . . . . . . 37 . . . . . . . . . . . . 40 . . . . . Reduced by Siege Mode 134 | . . . . . . . . . . . . . . . . . . . . . . 7 . 127 Redirected to Shielding 521 | . . . . . . . . . . . . . 255 27 . . 60 13 166 . . . . . Ignored by Resistances 507 | . . . . . . . . . . . . . 6 . . . . . . . . . . 501 Regen/Repaired (Parts) 24 | . . . . . . . . . . . . 24 . . . . . . . . . . . . Core Remaining (%) 83 | 100 . . . 87 97 . . . . 60 . . . . . . 53 . . . . 88 98 . Volleys Fired 356 | . 11 8 . 1 11 44 14 25 . . 4 5 29 4 1 . 16 14 12 8 32 29 24 64 Largest 4 | . 2 2 . 2 2 3 3 3 . . 1 3 4 4 3 . 1 4 2 2 3 4 4 4 Hottest 253 | . 40 40 . 60 60 145 106 250 . . 250 95 210 220 165 . 60 235 250 240 135 203 253 253 Shots Fired 778 | . 22 16 . 2 22 70 36 51 . . 4 11 51 16 3 . 16 41 16 15 61 99 61 165 Gun 398 | . 22 16 . . . 51 36 44 . . . 6 2 16 3 . 16 39 8 15 61 24 . 39 Cannon 312 | . . . . . . 1 . 7 . . 4 3 47 . . . . . 8 . . 75 60 107 Launcher 68 | . . . . 2 22 18 . . . . . 2 2 . . . . 2 . . . . 1 19 Special . | . . . . . . . . . . . . . . . . . . . . . . . . . Kinetic 439 | . 22 16 . . . 10 27 44 . . . 6 2 . . . 16 . 5 . 45 66 43 137 Thermal 104 | . . . . . . . . 7 . . 4 3 47 . . . . . 3 1 . 17 17 5 Explosive 68 | . . . . 2 22 18 . . . . . 2 2 . . . . 2 . . . . 1 19 Electromagnetic 163 | . . . . . . 42 9 . . . . . . 16 3 . . 39 8 14 16 16 . . Phasic 4 | . . . . . . . . . . . . . . . . . . . . . . . . 4 Robot Hit Streak 22 | . 3 11 . 13 15 7 5 9 . . 9 3 8 9 1 . 6 10 5 3 15 22 10 18 Robot Miss Streak 8 | . 4 8 . . 2 3 4 7 . . 1 1 3 4 6 . 4 2 2 3 4 2 5 5 Penetration Max 1 | . . . . . . 1 . . . . . . . . . . . . . . 1 1 . . Secondary Targets 5 | . . . . . . . 1 . . . . . . . . . . 1 1 . . 1 . 1 Max Gunslinging Chain 1 | . . . . . . . 1 . . . . . . . . . . 1 1 . . 1 . 1 Shots Hit Robots 514 | . 11 11 . 2 6 41 21 34 . 2 12 8 37 9 1 . 15 34 17 8 39 58 32 116 Core Hits 421 | . 4 2 . 6 52 46 6 23 . 2 14 1 25 4 . . 14 17 6 4 17 34 19 125 Critical Kills 8 | . . . . . . 1 . 1 . . . . 1 . . . . . 1 . 3 . . 1 Critical Parts Destroyed 16 | . 1 1 . . . 1 1 . . . . . 3 . . . . 2 2 . 1 1 . 3 Critical Strikes 48 | . 1 1 . . . 2 1 1 . 1 3 . 4 . . . . 2 3 . 5 3 2 19 Meltdown 1 | . . . . . . . . . . . . . 1 . . . . . . . . . . . Destroy 16 | . 1 1 . . . 2 1 1 . . . . . . . . . . 1 . 4 1 . 4 Blast 18 | . . . . . . . . . . . . . . . . . . . . . . 2 2 14 Corrupt 1 | . . . . . . . . . . . . . . . . . . . . . 1 . . . Smash 7 | . . . . . . . . . . . . . 3 . . . . 2 2 . . . . . Impale 4 | . . . . . . . . . . 1 3 . . . . . . . . . . . . . Intensify 1 | . . . . . . . . . . . . . . . . . . . . . . . . 1 Melee Attacks 66 | . . . . . . . . . 4 5 20 . 15 2 . . . 3 17 . . . . . Impact 40 | . . . . . . . . . . . 3 . 15 2 . . . 3 17 . . . . . Slashing . | . . . . . . . . . . . . . . . . . . . . . . . . . Piercing 26 | . . . . . . . . . 4 5 17 . . . . . . . . . . . . . Sneak Attacks 20 | . . . . . . . . . . 2 5 . 6 . . . . 3 4 . . . . . Combat Hostiles 3 | . . . . . . . . . . . . . . . . . . . 3 . . . . . Follow-up Attacks . | . . . . . . . . . . . . . . . . . . . . . . . . . Damage Inflicted 26103 | . 119 116 . 204 1186 2055 345 1526 . 163 905 424 2671 151 10 . 833 1002 1124 143 1081 2242 1486 8317 Guns 5589 | . 119 116 . . . 517 345 554 . . . 71 43 82 10 . 833 370 105 143 1081 365 . 835 Cannons 7220 | . . . . . . 27 . 232 . . 138 99 994 . . . . . 174 . . 1726 1182 2648 Explosions 10428 | . . . . 180 1180 1511 . 740 . . 295 254 675 . . . . 299 112 . . 114 283 4785 Melee 2723 | . . . . . . . . . . 163 472 . 953 69 . . . 333 733 . . . . . Ramming 143 | . . . . 24 6 . . . . . . . 6 . . . . . . . . 37 21 49 Kinetic 8360 | . 119 116 . . . 235 264 554 . . . 71 43 . . . 833 . 20 . 753 1494 664 3194 Thermal 4870 | . . . . . . 111 . 972 . . 433 99 1514 . . . . 157 266 . . 506 518 294 Explosive 8222 | . . . . 180 1180 1400 . . . . . 254 155 . . . . 142 . . . . 283 4628 Electromagnetic 1633 | . . . . . . 309 81 . . . . . . 82 10 . . 370 105 143 328 205 . . Impact 2088 | . . . . . . . . . . . . . 953 69 . . . 333 733 . . . . . Slashing . | . . . . . . . . . . . . . . . . . . . . . . . . . Piercing 635 | . . . . . . . . . . 163 472 . . . . . . . . . . . . . Phasic 152 | . . . . . . . . . . . . . . . . . . . . . . . . 152 Highest Corruption 22 | . . . . . 1 12 12 22 22 . 4 4 9 9 9 9 9 . . 21 22 19 . . Average Corruption 12 | . . . . . 1 10 12 14 22 . 3 4 5 9 9 9 9 . . 16 19 14 . . Corruption Purged 8 | . . . . . . . . . . . . . . . . . . . . . 8 . . . Corruption Blocked . | . . . . . . . . . . . . . . . . . . . . . . . . . Effects 209 | . . . . . . 2 12 56 5 . 8 3 24 9 5 1 7 . . 22 22 33 . . Message Errors 39 | . . . . . . . 1 11 1 . 1 1 3 4 3 1 . . . 5 3 5 . . Matter Fused 54 | . . . . . . . 2 17 1 . 3 1 4 1 2 . 4 . . 6 4 9 . . Heat Flow Errors 30 | . . . . . . . 5 5 1 . 2 1 4 1 . . 1 . . 4 5 1 . . Energy Discharges 19 | . . . . . . . 1 5 . . . . 5 . . . 1 . . 1 4 2 . . Parts Rejected 1 | . . . . . . . . . . . . . 1 . . . . . . . . . . . Parts Fused 2 | . . . . . . 1 . 1 . . . . . . . . . . . . . . . . Data Loss (minor) 19 | . . . . . . . 2 7 . . . . 3 1 . . . . . 3 . 3 . . Data Loss (major) 14 | . . . . . . . . 1 2 . 2 . 1 2 . . 1 . . 2 . 3 . . Misfires 6 | . . . . . . 1 . 3 . . . . . . . . . . . . 1 1 . . Alerts 8 | . . . . . . . . 5 . . . . . . . . . . . 1 . 2 . . Misdirections 1 | . . . . . . . . . . . . . . . . . . . . . . 1 . . Weapon Failures 16 | . . . . . . . 1 1 . . . . 3 . . . . . . . 5 6 . . Overload Shots 9 | . . . . . . . . . . . . . 8 . . . . . . 1 . . . . Overflow Damage 1891 | . . . . . . 26 . 37 . . 76 . 568 44 . . . 333 394 . . 32 24 357 Projectiles 326 | . . . . . . . . 14 . . . . 48 . . . . . 16 . . 32 20 196 Explosions 301 | . . . . . . 26 . 23 . . 8 . 64 . . . . 24 . . . . 4 152 Melee 1264 | . . . . . . . . . . . 68 . 456 44 . . . 309 378 . . . . 9 Knockbacks 29 | . . . . . . . . . . . . . 2 . . . . 2 4 . . 5 3 13 Impact 9 | . . . . . . . . . . . . . 2 . . . . 2 4 . . 1 . . Kinetic 19 | . . . . . . . . . . . . . . . . . . . . . . 4 3 12 Secondary 1 | . . . . . . . . . . . . . . . . . . . . . . . . 1 Self-Inflicted Damage 750 | . . . . . 23 . . 114 . . . . 165 . . . . . . . . 169 70 209 Shots 22 | . . . . . 1 . . 8 . . . . 2 . . . . . . . . 2 1 8 Rammed 25 | . . . . 7 2 . . . . . . . 1 . . . . . . . . 5 2 8 Targets Rammed 26 | . . . . 7 3 . . . . . . . 1 . . . . . . . . 5 2 8 Kicked . | . . . . . . . . . . . . . . . . . . . . . . . . . Crushed 1 | . . . . . 1 . . . . . . . . . . . . . . . . . . . Highest Temperature 595 | . 12 24 . 9 12 318 335 486 172 . 401 170 283 154 51 . 183 75 400 159 181 167 190 595 Average Temperature 116 | . 8 7 . 6 8 114 139 153 94 . 128 86 101 62 29 . 89 18 146 84 87 36 61 192 Received Heat Transfer 1530 | . 54 30 . 21 45 353 45 99 . . 63 . 180 . . . 36 9 49 18 . 75 72 381 Effects 33 | . . . . . . . 1 7 . . 1 . 3 . . . . . 3 . . . . 18 Shutdowns 5 | . . . . . . . . 3 . . . . . . . . . . 1 . . . . 1 Energy Bleed 8 | . . . . . . . 1 2 . . 1 . 2 . . . . . . . . . . 2 Interference 7 | . . . . . . . . . . . . . 1 . . . . . 2 . . . . 4 Matter Decay 3 | . . . . . . . . 1 . . . . . . . . . . . . . . . 2 Short Circuit 2 | . . . . . . . . 1 . . . . . . . . . . . . . . . 1 Damage (minor) 4 | . . . . . . . . . . . . . . . . . . . . . . . . 4 Damage (major) 3 | . . . . . . . . . . . . . . . . . . . . . . . . 3 Damage (core) 1 | . . . . . . . . . . . . . . . . . . . . . . . . 1 Siege Activations 3 | . . . . . . . . . . . . . . . . . . . . . . 1 . 2 Total Turns 91 | . . . . . . . . . . . . . . . . . . . . . . 21 . 70 Longest Duration 56 | . . . . . . . . . . . . . . . . . . . . . . 21 . 56 Martial Activations . | . . . . . . . . . . . . . . . . . . . . . . . . . Shielding Activations . | . . . . . . . . . . . . . . . . . . . . . . . . . Robots Disrupted 5 | . . . . . . . . . . . . . . 1 . . . 2 . . . 2 . . Combat Hostiles . | . . . . . . . . . . . . . . . . . . . . . . . . . Robots Corrupted 12 | . . . . . . 1 . . . . . . 3 1 . . . 1 3 1 2 . . . Combat Hostiles 6 | . . . . . . 1 . . . . . . . 1 . . . . 3 1 . . . . Parts Fried 29 | . . . . . . 1 . . . . . . 9 5 . . . 1 6 . 7 . . . Impact Corruptions 27 | . . . . . . . . . . . . . 9 1 . . . 5 10 . . . . 2 Robots Melted 13 | . . . . . . . . 7 . . 2 . 1 . . . . . 1 . . . . 2 Combat Hostiles 13 | . . . . . . . . 7 . . 2 . 1 . . . . . 1 . . . . 2 Parts Melted 67 | . . . . . . . . 32 . . 7 . 6 . . . . . 13 . . . . 9 Heat Transferred 11374 | . . . . . . 100 . 4800 . . 2100 150 1864 . . . . 150 1040 . . 50 . 1120 Parts Sabotaged . | . . . . . . . . . . . . . . . . . . . . . . . . . Parts Stolen 3 | . . . . . . . . 2 . . . . . 1 . . . . . . . . . . Parts Stripped . | . . . . . . . . . . . . . . . . . . . . . . . . . Power Chain Reactions 6 | . . . . . . 4 . . . . . . . . . . . 1 . . . 1 . . Alert | -11 -10 -10 -10 -9 -8 -7 -7 -7 -7 -6 -6 -6 -6 -6 -6 -6 -5 -5 -5 -5 -5 -5 -4 -3 ------- Run | Yrd Mat Min Exi Min Mat Fac Low Low Zio Pro Fac Was Fac Low Low Dat Pro Fac Ext Cet Arc Hub Fac Res Maximum Alert Level 5 | . . . . . 1 2 . . . . 2 . 5 . . . . 3 4 3 1 3 2 3 Low Security (%) 21 | . 100 100 . 100 68 29 . . . . . 100 2 . . . . 48 . . 2 14 . . Level 1 23 | . . . . . 31 57 . . . . 92 . 9 . . . . 10 . . 97 21 . 23 Level 2 28 | . . . . . . 12 . . . . 7 . 6 . . . . . 40 87 . 20 100 31 Level 3 16 | . . . . . . . . . . . . . 9 . . . . 40 19 12 . 42 . 45 Level 4 5 | . . . . . . . . . . . . . 34 . . . . . 40 . . . . . Level 5 3 | . . . . . . . . . . . . . 37 . . . . . . . . . . . High Security . | . . . . . . . . . . . . . . . . . . . . . . . . . Max Security . | . . . . . . . . . . . . . . . . . . . . . . . . . Peak Influence 2441 | . 40 25 . 84 324 512 . . . . 411 160 2441 . . . . 985 1154 739 369 934 689 1067 Initial 620 | . . . . . . 142 . . . . 300 112 91 . . . . 195 469 620 195 94 453 357 Average 547 | . 7 4 . 20 142 300 . . . . 319 132 1506 . . . . 453 868 611 318 565 511 650 Influence Increases 11672 | . 40 50 . 84 557 712 90 155 . 12 696 108 2824 138 106 . 420 1089 895 174 306 1280 562 1374 Destroy 0b10 Robot/C 4620 | . 40 20 . 60 340 400 80 120 . . 240 . 760 100 80 . 360 240 340 80 80 380 240 660 Destroy 0b10 Robot/NC 550 | . . . . . 45 25 . . . 10 30 . 125 . . . . 115 30 5 45 55 5 60 Destroy Leader 870 | . . . . 10 46 84 10 20 . . 62 . 176 10 10 . 20 86 32 . . 122 50 132 Allied During Kill 1976 | . . . . 11 34 8 . . . 2 29 . 962 28 16 . 40 238 250 46 125 187 . . Successful Hack 55 | . . . . . 18 7 . . . . 14 . . . . . . . . . . . 16 . Select Force Hacks 50 | . . . . . . 50 . . . . . . . . . . . . . . . . . . Disable Machine 720 | . . . . . . . . . . . . . 225 . . . . 75 60 15 30 120 135 60 Anti-Garrison Action 450 | . . . . . . . . . . . . . 300 . . . . . . . . 150 . . Destroy Structure 1811 | . . . . 3 74 48 . . . . 6 108 276 . . . . 320 168 28 26 266 116 372 Advance Influence 300 | . . . . . . . . . . . 300 . . . . . . . . . . . . . Partial Spotted 75 | . . . . . . 45 . . . . 15 . . . . . . 15 . . . . . . Lose Combat Pursuer 195 | . . 30 . . . 45 . 15 . . . . . . . . . . 15 . . . . 90 Influence Decreases 10609 | . 40 50 . 84 243 522 378 371 . 12 376 298 537 1136 320 1205 110 441 745 794 523 625 807 992 Entered New Map 5379 | . . . . . . 172 188 42 . . . 208 39 896 270 1205 . 115 489 488 293 177 473 324 Time Decay 3900 | . 40 50 . 84 93 230 160 319 . 12 246 80 318 130 50 . 110 206 206 286 190 278 334 478 Lost Part 540 | . . . . . . 80 30 10 . . 50 10 70 10 . . . 70 10 . . 10 . 190 Lost Ally 640 | . . . . . . 40 . . . . 80 . 110 100 . . . 50 40 20 40 160 . . Purge Threat 150 | . . . . . 150 . . . . . . . . . . . . . . . . . . . Squads Dispatched 59 | . 3 . . . 2 6 . . . . 3 . 17 . . . 1 5 . . . 11 1 10 Investigation 15 | . 2 . . . 2 3 . . . . 2 . 3 . . . 1 1 . . . . . 1 Extermination 10 | . . . . . . 1 . . . . 1 . 2 . . . . 1 . . . 2 . 3 Reinforcement 15 | . 1 . . . . 2 . . . . . . 3 . . . . 1 . . . 5 . 3 Assault 12 | . . . . . . . . . . . . . 5 . . . . 1 . . . 3 1 2 Garrison 7 | . . . . . . . . . . . . . 4 . . . . 1 . . . 1 . 1 Intercept . | . . . . . . . . . . . . . . . . . . . . . . . . . Searches Triggered . | . . . . . . . . . . . . . . . . . . . . . . . . . Data Miner Redirects 1 | . . . . . . . . . . . . . . . . . . . . . . . . 1 Construction Impeded 4 | . . . . . . 2 . . . . . . . . . . . . . . . 2 . . Haulers Reinforced 4 | . . . . . . . . . . . . . 2 . . . . . . . . 1 . 1 Active Scanning Responses . | . . . . . . . . . . . . . . . . . . . . . . . . . Cargo Convoy Interrupts . | . . . . . . . . . . . . . . . . . . . . . . . . . Stealth | -11 -10 -10 -10 -9 -8 -7 -7 -7 -7 -6 -6 -6 -6 -6 -6 -6 -5 -5 -5 -5 -5 -5 -4 -3 --------- Run | Yrd Mat Min Exi Min Mat Fac Low Low Zio Pro Fac Was Fac Low Low Dat Pro Fac Ext Cet Arc Hub Fac Res Distress Signals 17 | . 2 . . . . 3 . . . . . . 1 . . . . . 1 1 . 3 2 4 Communications Jammed . | . . . . . . . . . . . . . . . . . . . . . . . . . Distress Signals . | . . . . . . . . . . . . . . . . . . . . . . . . . Times Spotted 322 | . 3 7 . 6 21 29 5 14 . 1 15 5 34 11 4 . 17 13 16 5 18 25 17 56 Peak Tracking Total 8 | . 3 3 . 3 7 7 3 4 . 1 4 2 7 3 4 . 8 3 5 5 1 7 7 7 Tactical Retreats 9 | . . 2 . . . 2 . 1 . . . . . . . . . . 1 . . . . 3 Traps | -11 -10 -10 -10 -9 -8 -7 -7 -7 -7 -6 -6 -6 -6 -6 -6 -6 -5 -5 -5 -5 -5 -5 -4 -3 ------- Run | Yrd Mat Min Exi Min Mat Fac Low Low Zio Pro Fac Was Fac Low Low Dat Pro Fac Ext Cet Arc Hub Fac Res Traps Triggered 12 | . 2 . . . . 3 . 1 . . 2 . 1 . . . . . . . . . . 3 Indirectly . | . . . . . . . . . . . . . . . . . . . . . . . . . Trap Hack Attempts . | . . . . . . . . . . . . . . . . . . . . . . . . . Triggered . | . . . . . . . . . . . . . . . . . . . . . . . . . Disarmed . | . . . . . . . . . . . . . . . . . . . . . . . . . Reprogrammed . | . . . . . . . . . . . . . . . . . . . . . . . . . Reused . | . . . . . . . . . . . . . . . . . . . . . . . . . Traps Extracted . | . . . . . . . . . . . . . . . . . . . . . . . . . Installed . | . . . . . . . . . . . . . . . . . . . . . . . . . Triggered . | . . . . . . . . . . . . . . . . . . . . . . . . . Machines | -11 -10 -10 -10 -9 -8 -7 -7 -7 -7 -6 -6 -6 -6 -6 -6 -6 -5 -5 -5 -5 -5 -5 -4 -3 ---------- Run | Yrd Mat Min Exi Min Mat Fac Low Low Zio Pro Fac Was Fac Low Low Dat Pro Fac Ext Cet Arc Hub Fac Res Machines Disabled 57 | . . . . . . . . . . . . . 17 . . . 4 5 6 1 2 9 9 4 Max in Single Turn 6 | . . . . . . . . . . . . . 6 . . . 1 2 1 1 1 5 4 2 Garrison Access 4 | . . . . . . . . . . . . . 2 . . . . 1 . . . 1 . . Network Hub 1 | . . . . . . . . . . . . . . . . . . . . . . 1 . . Machines Repaired . | . . . . . . . . . . . . . . . . . . . . . . . . . Machines Dismantled . | . . . . . . . . . . . . . . . . . . . . . . . . . Machines Sabotaged . | . . . . . . . . . . . . . . . . . . . . . . . . . Overloaded Fab Kills 3 | . . . . . . 3 . . . . . . . . . . . . . . . . . . Hacking | -11 -10 -10 -10 -9 -8 -7 -7 -7 -7 -6 -6 -6 -6 -6 -6 -6 -5 -5 -5 -5 -5 -5 -4 -3 --------- Run | Yrd Mat Min Exi Min Mat Fac Low Low Zio Pro Fac Was Fac Low Low Dat Pro Fac Ext Cet Arc Hub Fac Res Machines Accessed 30 | . . . 2 . 4 4 . . . . 4 . 4 1 . 4 1 3 . 1 . . 2 . Terminals 8 | . . . . . 4 2 . . . . . . . . . . 1 . . 1 . . . . Fabricators 7 | . . . . . . 1 . . . . 2 . 1 . . . . 1 . . . . 2 . Repair Stations 1 | . . . . . . . . . . . . . . . . . . 1 . . . . . . Recycling Units 5 | . . . . . . 1 . . . . 2 . 2 . . . . . . . . . . . Scanalyzers . | . . . . . . . . . . . . . . . . . . . . . . . . . Garrison Access 2 | . . . . . . . . . . . . . 1 . . . . 1 . . . . . . Total Hacks 110 | . . . 2 . 12 11 . . . . 14 . 10 1 . 31 7 10 . 1 . . 11 . Successful 71 | . . . 2 . 7 5 . . . . 7 . 3 1 . 31 7 2 . . . . 6 . Failed 39 | . . . . . 5 6 . . . . 7 . 7 . . . . 8 . 1 . . 5 . Catastrophic 11 | . . . . . . 2 . . . . 2 . 3 . . . . 1 . 1 . . 2 . Database Lockouts . | . . . . . . . . . . . . . . . . . . . . . . . . . Manual 75 | . . . 1 . 1 3 . . . . 18 . 18 . . . . 11 2 2 . 10 7 2 Terminals 26 | . . . . . 12 6 . . . . . . . . . . 7 . . 1 . . . . Fabricators 27 | . . . . . . 1 . . . . 9 . 1 . . . . 5 . . . . 11 . Repair Stations 3 | . . . . . . . . . . . . . . . . . . 3 . . . . . . Recycling Units 15 | . . . . . . 4 . . . . 5 . 6 . . . . . . . . . . . Scanalyzers . | . . . . . . . . . . . . . . . . . . . . . . . . . Garrison Access 5 | . . . . . . . . . . . . . 3 . . . . 2 . . . . . . Terminal Hacks 50 | . . . 2 . 6 3 . . . . . . . 1 . 31 7 . . . . . . . Record 19 | . . . 1 . . . . . . . . . . . . 11 7 . . . . . . . Part Schematic 12 | . . . . . . . . . . . . . . . . 12 . . . . . . . . Robot Schematic 5 | . . . . . . . . . . . . . . . . 5 . . . . . . . . Robot Analysis 1 | . . . . . 1 . . . . . . . . . . . . . . . . . . . Prototype ID Bank 3 | . . . . . . . . . . . . . . . . 3 . . . . . . . . Open Door 1 | . . . . . . . . . . . . . . 1 . . . . . . . . . . Branch Access Points 2 | . . . . . 1 1 . . . . . . . . . . . . . . . . . . Alert Level 1 | . . . . . . 1 . . . . . . . . . . . . . . . . . . Unreport Threat 1 | . . . . . 1 . . . . . . . . . . . . . . . . . . . Patrol Status 3 | . . . . . 2 1 . . . . . . . . . . . . . . . . . . Registered Components 1 | . . . . . 1 . . . . . . . . . . . . . . . . . . . Proto ID Catalog 1 | . . . 1 . . . . . . . . . . . . . . . . . . . . . Fabricator Hacks 6 | . . . . . . . . . . . 3 . . . . . . 1 . . . . 2 . Network Status 2 | . . . . . . . . . . . 1 . . . . . . . . . . . 1 . Load Schematic 2 | . . . . . . . . . . . 1 . . . . . . 1 . . . . . . Build 2 | . . . . . . . . . . . 1 . . . . . . . . . . . 1 . Repair Station Hacks . | . . . . . . . . . . . . . . . . . . . . . . . . . Recycling Unit Hacks 6 | . . . . . . 1 . . . . 2 . 3 . . . . . . . . . . . Process 1 | . . . . . . . . . . . . . 1 . . . . . . . . . . . Report Inventory 3 | . . . . . . 1 . . . . 1 . 1 . . . . . . . . . . . Retrieve Matter 1 | . . . . . . . . . . . . . 1 . . . . . . . . . . . Retrieve Components 1 | . . . . . . . . . . . 1 . . . . . . . . . . . . . Scanalyzer . | . . . . . . . . . . . . . . . . . . . . . . . . . Garrison Access Hacks 1 | . . . . . . . . . . . . . . . . . . 1 . . . . . . Seal Access 1 | . . . . . . . . . . . . . . . . . . 1 . . . . . . Unauthorized Hacks 8 | . . . . . 1 1 . . . . 2 . . . . . . . . . . . 4 . Terminals 1 | . . . . . 1 . . . . . . . . . . . . . . . . . . . Botnet 1 | . . . . . 1 . . . . . . . . . . . . . . . . . . . Fabricators 7 | . . . . . . 1 . . . . 2 . . . . . . . . . . . 4 . Report 1 | . . . . . . . . . . . . . . . . . . . . . . . 1 . Prioritize 2 | . . . . . . . . . . . 1 . . . . . . . . . . . 1 . Liberate 2 | . . . . . . . . . . . 1 . . . . . . . . . . . 1 . Haulers 1 | . . . . . . . . . . . . . . . . . . . . . . . 1 . Overload 1 | . . . . . . 1 . . . . . . . . . . . . . . . . . . Repair Stations . | . . . . . . . . . . . . . . . . . . . . . . . . . Recycling Units . | . . . . . . . . . . . . . . . . . . . . . . . . . Scanalyzers . | . . . . . . . . . . . . . . . . . . . . . . . . . Garrison Access . | . . . . . . . . . . . . . . . . . . . . . . . . . Data Cores Recovered 3 | . . . . . . . . . . . . . 1 . . . . 1 . . . 1 . . Used . | . . . . . . . . . . . . . . . . . . . . . . . . . Hacking Detections 20 | . . . . . 4 3 . . . . 4 . 3 . . . 1 2 . 1 . . 2 . Full Trace Events 10 | . . . . . 3 1 . . . . 2 . 2 . . . 1 1 . . . . . . Feedback Events 2 | . . . . . 1 . . . . . 1 . . . . . . . . . . . . . Corruption 2 | . . . . . 1 . . . . . 1 . . . . . . . . . . . . . Feedback Blocked . | . . . . . . . . . . . . . . . . . . . . . . . . . Robot Schematics Acquired 9 | . . . . . . . . . 4 . . . . . . 5 . . . . . . . . Robots Built . | . . . . . . . . . . . . . . . . . . . . . . . . . Authchips . | . . . . . . . . . . . . . . . . . . . . . . . . . Time 152 | . . . . . . . . . . . 152 . . . . . . . . . . . . . Total Robot Build Rating . | . . . . . . . . . . . . . . . . . . . . . . . . . Part Schematics Acquired 33 | . . . . . . . . . 13 . 8 . . . . 12 . . . . . . . . Parts Built 2 | . . . . . . . . . . . . . . . . . . . . . . . 2 . Authchips . | . . . . . . . . . . . . . . . . . . . . . . . . . Time 139 | . . . . . . . . . . . . . . . . . . . . . . . 139 . Total Part Build Rating 18 | . . . . . . . . . . . . . . . . . . . . . . . 18 . Parts Repaired . | . . . . . . . . . . . . . . . . . . . . . . . . . Time . | . . . . . . . . . . . . . . . . . . . . . . . . . Parts Recycled . | . . . . . . . . . . . . . . . . . . . . . . . . . Recycled Matter 8 | . . . . . . . . . . . . . 8 . . . . . . . . . . . Retrieved Matter 8 | . . . . . . . . . . . . . 8 . . . . . . . . . . . Retrieved Components 3 | . . . . . . . . . . . 3 . . . . . . . . . . . . . Parts Scanalyzed . | . . . . . . . . . . . . . . . . . . . . . . . . . Part Schematics Acquired . | . . . . . . . . . . . . . . . . . . . . . . . . . Parts Damaged . | . . . . . . . . . . . . . . . . . . . . . . . . . Bothacking | -11 -10 -10 -10 -9 -8 -7 -7 -7 -7 -6 -6 -6 -6 -6 -6 -6 -5 -5 -5 -5 -5 -5 -4 -3 ------------ Run | Yrd Mat Min Exi Min Mat Fac Low Low Zio Pro Fac Was Fac Low Low Dat Pro Fac Ext Cet Arc Hub Fac Res Used RIF Installer . | . . . . . . . . . . . . . . . . . . . . . . . . . Robots Hacked . | . . . . . . . . . . . . . . . . . . . . . . . . . Non-combat . | . . . . . . . . . . . . . . . . . . . . . . . . . Combat . | . . . . . . . . . . . . . . . . . . . . . . . . . Robot Hacks Applied . | . . . . . . . . . . . . . . . . . . . . . . . . . Relay Couplers Released 5 | . . . . . . . . . . . . . 3 . . . . . . . . 2 . . Machine Destruction 5 | . . . . . . . . . . . . . 3 . . . . . . . . 2 . . Fabnet Peak Effective % . | . . . . . . . . . . . . . . . . . . . . . . . . . Robots Rewired 8 | . . . . . . . . . . . . . . 1 . . . 1 6 . . . . . Allies Hacked 3 | . . . . . . . . . . . 3 . . . . . . . . . . . . . Hacks Repelled . | . . . . . . . . . . . . . . . . . . . . . . . . . Allies | -11 -10 -10 -10 -9 -8 -7 -7 -7 -7 -6 -6 -6 -6 -6 -6 -6 -5 -5 -5 -5 -5 -5 -4 -3 -------- Run | Yrd Mat Min Exi Min Mat Fac Low Low Zio Pro Fac Was Fac Low Low Dat Pro Fac Ext Cet Arc Hub Fac Res Total Allies 68 | . . . . 3 . . . . 4 . 8 18 5 1 . . . 10 11 5 . 2 . 1 Largest Group 20 | . . . . 3 3 2 . . 4 4 4 20 13 9 2 1 1 8 12 11 11 8 . 1 Highest-Rated Group 864 | . . . . 40 40 24 . . 155 155 210 864 685 448 188 138 138 487 601 747 747 556 . 31 Highest-Rated Ally 159 | . . . . 16 16 16 . . 40 40 138 138 138 138 138 138 138 138 159 146 146 96 . 31 Zionite Dispatches 10 | . . . . . . . . . . . 3 . 2 . . . . 2 1 . . 1 . 1 Light 2 | . . . . . . . . . . . 1 . . . . . . 1 . . . . . . Fire 3 | . . . . . . . . . . . 1 . 1 . . . . 1 . . . . . . Hacker 2 | . . . . . . . . . . . . . . . . . . . 1 . . 1 . . Demo 1 | . . . . . . . . . . . . . 1 . . . . . . . . . . . Hero 1 | . . . . . . . . . . . 1 . . . . . . . . . . . . . Zionite Resupply 1 | . . . . . . . . . . . . . . . . . . . . . . . . 1 Total Orders 2 | . . . . . . . . . . . . . . . . . . 1 . . . . . 1 DROP 2 | . . . . . . . . . . . . . . . . . . 1 . . . . . 1 Ally Attacks 421 | . . . . 1 22 11 . . . 1 39 40 78 26 3 . 15 34 40 21 31 59 . . Total Damage 29114 | . . . . 14 191 116 . . . 18 825 5131 5945 871 610 . 2276 4623 4094 879 1107 2414 . . Kills 164 | . . . . 1 3 1 . . . 1 9 12 39 8 5 . 14 34 17 4 4 12 . . Allies Corrupted 2 | . . . . . . . . . . . 1 . 1 . . . . . . . . . . . Allies Melted . | . . . . . . . . . . . . . . . . . . . . . . . . . Intel | -11 -10 -10 -10 -9 -8 -7 -7 -7 -7 -6 -6 -6 -6 -6 -6 -6 -5 -5 -5 -5 -5 -5 -4 -3 ------- Run | Yrd Mat Min Exi Min Mat Fac Low Low Zio Pro Fac Was Fac Low Low Dat Pro Fac Ext Cet Arc Hub Fac Res Active Infowar (turns) 4721 | . . . . . 105 484 325 1394 1119 171 138 . 2 . . . . 222 386 . . . . 375 Sensors 760 | . . . . . 86 180 . . . . . . . . . . . 144 350 . . . . . IFF 605 | . . . . . . . . . . . . . 2 . . . . 78 150 . . . . 375 Seismic 3199 | . . . . . . 59 325 1394 1119 171 131 . . . . . . . . . . . . . T.N.C. 516 | . . . . . 105 411 . . . . . . . . . . . . . . . . . . ECM 7 | . . . . . . . . . . . 7 . . . . . . . . . . . . . Robot Analysis Total 1 | . . . . . 1 . . . . . . . . . . . . . . . . . . . Derelict Logs Recovered 8 | . . . . 1 . . . 1 2 2 . . . 1 . . 1 . . . . . . . Drone Launches . | . . . . . . . . . . . . . . . . . . . . . . . . . Drone Recoveries . | . . . . . . . . . . . . . . . . . . . . . . . . . Zionite Intel Received 4 | . . . . . . . . . . . 1 . 2 . . . . . . . . 1 . . Branch Access 1 | . . . . . . . . . . . . . 1 . . . . . . . . . . . Prototype Stockpiles 1 | . . . . . . . . . . . . . . . . . . . . . . 1 . . Prototype Schematics 1 | . . . . . . . . . . . 1 . . . . . . . . . . . . . Active Garrisons 1 | . . . . . . . . . . . . . 1 . . . . . . . . . . . Exploration | -11 -10 -10 -10 -9 -8 -7 -7 -7 -7 -6 -6 -6 -6 -6 -6 -6 -5 -5 -5 -5 -5 -5 -4 -3 ------------- Run | Yrd Mat Min Exi Min Mat Fac Low Low Zio Pro Fac Was Fac Low Low Dat Pro Fac Ext Cet Arc Hub Fac Res Turns Passed 11456 | . 198 266 366 340 235 484 325 1394 1119 171 528 166 710 263 110 53 241 434 427 635 393 611 759 1228 Spaces Moved 9160 | 1 136 193 251 197 216 699 309 579 899 298 659 158 885 395 145 92 350 503 403 287 176 288 414 627 Core 51 | . . . . . . . . . . . . . . . . . . . . . . . . 51 Treads 2041 | . . . 132 197 62 . . . . . . . . . . . . . . 251 176 288 414 521 Legs 449 | 1 136 193 119 . . . . . . . . . . . . . . . . . . . . . Wheels 8 | . . . . . . . . . . . 8 . . . . . . . . . . . . . Hover 6188 | . . . . . 154 699 309 579 531 298 651 158 885 395 145 92 350 503 403 36 . . . . Flight 423 | . . . . . . . . . 368 . . . . . . . . . . . . . . 55 Fastest Speed 15 | 120 120 120 120 160 42 38 43 111 111 48 46 53 52 52 52 52 52 28 38 43 160 160 160 15 Average Speed 96 | 120 120 120 141 160 76 40 83 219 114 49 51 53 54 52 52 52 52 58 44 149 160 162 160 139 Slowest Speed 230 | 120 120 120 160 160 190 102 111 230 194 111 112 53 116 52 52 52 52 111 105 160 160 163 160 200 Overloaded Moves 23 | . . . . . . . . . . . . . . . . . . . . . . . . 23 Propulsion Burnouts . | . . . . . . . . . . . . . . . . . . . . . . . . . Robots Hopped 5 | . . . . . . . . . . . . . . 2 . . . . . . . . . 3 Potential Cave-ins 1 | . . . . . . . . . . . . . . . . . . 1 . . . . . . Cave-ins Triggered . | . . . . . . . . . . . . . . . . . . . . . . . . . Time Travels 1 | . . . . . . . . . . . 1 . . . . . . . . . . . . . Exploration Rate (%) 45 | 2 23 44 60 64 22 19 55 65 89 58 21 80 30 42 38 69 59 17 57 68 87 44 9 19 Regions Visited 24 Branch Regions 15 Pre-discovered Areas 6 | . . . 1 . . . . . 3 . . . . . . 1 1 . . . . . . . Known Exits Taken 7 | . . . . . . 1 . . . 1 . . 1 . . . 1 1 1 . . . 1 . Unknown Exits Taken 15 | 1 1 1 1 1 1 . 1 1 1 . . . . 1 1 1 . . . 1 1 1 . . Scrap Searched 12 | . . . . 1 . . 2 1 3 1 . . . 1 . . 3 . . . . . . . Spaces Dug 18 | . . . . . . . . . . 2 4 . 2 1 . . . . 4 . . 3 . 2 Terrain Destroyed 836 | . . . . 3 94 43 . . . 2 4 35 72 1 . . 1 46 9 . 20 176 56 274 Melee 13 | . . . . . . . . . . 2 4 . 2 1 . . . . 4 . . . . . Projectile 137 | . . . . . . . . . . . . 1 15 . . . 1 . 4 . 20 29 20 47 AOE 686 | . . . . 3 94 43 . . . . . 34 55 . . . . 46 1 . . 147 36 227 Terrain Rammed . | . . . . . . . . . . . . . . . . . . . . . . . . . Walls Destroyed . | . . . . . . . . . . . . . . . . . . . . . . . . . Machines Disabled . | . . . . . . . . . . . . . . . . . . . . . . . . . Actions | -11 -10 -10 -10 -9 -8 -7 -7 -7 -7 -6 -6 -6 -6 -6 -6 -6 -5 -5 -5 -5 -5 -5 -4 -3 --------- Run | Yrd Mat Min Exi Min Mat Fac Low Low Zio Pro Fac Was Fac Low Low Dat Pro Fac Ext Cet Arc Hub Fac Res Total 11006 | . 150 213 270 216 260 833 347 663 982 311 799 230 1029 441 176 97 409 612 599 482 222 357 462 846 Wait 762 | . 1 9 . 12 14 36 15 17 70 3 40 65 41 16 31 . 27 24 108 148 10 15 9 51 Move 9128 | . 135 192 250 196 215 698 308 578 898 297 659 157 884 391 144 91 349 502 402 286 175 287 413 621 Hop 4 | . . . . . . . . . . . . . . 1 . . . . . . . . . 3 Pick Up 100 | . 2 2 6 . 2 7 4 10 2 1 10 . 7 9 . . 5 11 2 3 1 2 2 12 Fast Attach 121 | . 1 . . . 7 12 2 7 2 2 20 . 16 3 . 2 2 14 5 8 1 4 . 13 Attach 77 | . . . 4 . . 4 . 7 1 . 4 1 6 3 . . 6 10 4 4 1 1 1 20 Detach 57 | . . . . . . 1 . 5 1 . 7 . 9 4 . 2 2 7 3 2 . 2 1 11 Swap 91 | . . 1 . . 1 11 . . . . 13 2 7 . . . . 4 7 7 2 7 8 21 Drop 166 | . . 1 10 . 7 12 4 14 4 3 19 . 14 7 . 2 2 16 6 16 . 5 2 22 Fire 356 | . 11 8 . 1 11 44 14 25 . . 4 5 29 4 1 . 16 14 12 8 32 29 24 64 Melee 66 | . . . . . . . . . 4 5 20 . 15 2 . . . 3 17 . . . . . Ram 1 | . . . . . . . . . . . . . 1 . . . . . . . . . . . Kick . | . . . . . . . . . . . . . . . . . . . . . . . . . Crush 25 | . . . . 7 3 . . . . . . . . . . . . . . . . 5 2 8 Escape Stasis 8 | . . . . . . 8 . . . . . . . . . . . . . . . . . . Rewire 44 | . . . . . . . . . . . 3 . . 1 . . . 7 33 . . . . . Trap . | . . . . . . . . . . . . . . . . . . . . . . . . . Miscellaneous . | . . . . . . . . . . . . . . . . . . . . . . . . . Route ------- -11/Scrapyard -10/Materials -10/Mines -10/Exiles -9/Mines -8/Materials (discovered 2 exits: *Fac / Sto) -7/Factory (discovered 2 exits: *Low x2) -7/Lower Caves -7/Lower Caves (discovered 2 exits: Fac / [*Zio]) -7/Zion -6/Proximity Caves -6/Factory -6/Waste -6/Factory (discovered 2 exits: *Low x2) -6/Lower Caves -6/Lower Caves -6/Data Miner -5/Proximity Caves -5/Factory (discovered 2 exits: *Ext x2) -5/Extension (discovered 2 exits: *Fac / *Cet) -5/Cetus -5/Archives (discovered 3 exits: *Fac / *Hub x2) -5/Hub_04(d) (discovered 2 exits: *Fac x2) -4/Factory -3/Research History --------- Turn | Location | Event 1 | -11/Scrapyard | Discovered new exit (range 0) 1 | -11/Scrapyard | Entered Materials 93 | -10/Materials | Met 8R-AWN 183 | -10/Materials | Discovered new exit (range 8) 199 | -10/Materials | Entered Mines 200 | -10/Mines | Assembled infested the area 201 | -10/Mines | Followed 8R-AWN into the Mines 205 | -10/Mines | Assisted by a Guerilla fighting off Assembled 285 | -10/Mines | YI-UF0 nonchalantly dropped a Grenade Launcher on the ground 305 | -10/Mines | Build established: Mutant 460 | -10/Mines | Discovered new exit (range 5) 465 | -10/Mines | Entered Exiles 500 | -10/Exiles | Welcomed by 8R-AWN 524 | -10/Exiles | Met EX-HEX 557 | -10/Exiles | Met EX-BIN 571 | -10/Exiles | Aligned with FarCom system 572 | -10/Exiles | Given EX-Vault access code 601 | -10/Exiles | Opened EX-Vault 614 | -10/Exiles | Found Firepult 626 | -10/Exiles | Found XL Autogun Array 633 | -10/Exiles | Found Chronowheel 666 | -10/Exiles | Warned to stay clear of 0b10 Research branches 716 | -10/Exiles | Met EX-DEC 732 | -10/Exiles | Learned location of Zion (-7) 812 | -10/Exiles | Discovered new exit (range 14) 831 | -10/Exiles | Stole three prototypes: Chronowheel, Firepult, XL Autogun Array 831 | -10/Exiles | Entered Mines 875 | -9/Mines | Met a Derelict bent on vengeance 895 | -9/Mines | Learned 2 Materials zone layouts 914 | -9/Mines | Assisted by bots powering up and referring to "LRC-V3" 1146 | -9/Mines | Discovered new exit (range 15) 1171 | -9/Mines | Entered Materials 1171 | -8/Materials | Accompanied by 3 allies 1171 | -8/Materials | Evolved 4 slots: Propulsion x1, Utility x2, Weapon x1 1192 | -8/Materials | Identified exit to Storage 1356 | -8/Materials | Discovered new exit (range 10) 1406 | -8/Materials | Entered Factory 1406 | -7/Factory | Accompanied by 2 allies 1406 | -7/Factory | Evolved 2 slots: Propulsion x1, Utility x1 1408 | -7/Factory | FarCom data flow suspended 1586 | -7/Factory | Identified exit to Lower Caves 1683 | -7/Factory | Lost 4 parts (1n3w) 1822 | -7/Factory | System corruption reached 10% 1890 | -7/Factory | Entered Lower Caves 1891 | -7/Lower Caves | Encountered a Warlord checkpoint 2197 | -7/Lower Caves | Discovered new exit (range 12) 2215 | -7/Lower Caves | Entered another Lower Caves area 2250 | -7/Lower Caves | Identified exit to Factory 2264 | -7/Lower Caves | Ambushed by wild Derelicts 2359 | -7/Lower Caves | Build established: Scavenger-Mutant 3086 | -7/Lower Caves | Build established: Scavenger-Gunner 3301 | -7/Lower Caves | Spotted B-75 Beast 3310 | -7/Lower Caves | Destroyed B-75 Beast 3492 | -7/Lower Caves | Spotted 15-JOL(f) 3493 | -7/Lower Caves | Encountered a Master Thief 3494 | -7/Lower Caves | Spotted 3W-K9B(f) 3495 | -7/Lower Caves | Encountered a Master Thief 3495 | -7/Lower Caves | Spotted 21-EA9(f) 3495 | -7/Lower Caves | Spotted WO-V8Y(f) 3495 | -7/Lower Caves | XL Autogun Array stolen by Master Thief 3496 | -7/Lower Caves | Encountered a Master Thief 3496 | -7/Lower Caves | Encountered a Master Thief 3497 | -7/Lower Caves | Chronowheel stolen by Master Thief 3498 | -7/Lower Caves | Destroyed 15-JOL(f) 3498 | -7/Lower Caves | Destroyed 3W-K9B(f) 3498 | -7/Lower Caves | Destroyed WO-V8Y(f) 3499 | -7/Lower Caves | Destroyed 21-EA9(f) 3600 | -7/Lower Caves | Discovered new exit (range 5) 3609 | -7/Lower Caves | Entered Zion 3688 | -7/Zion | Discovered new exit (range 12) 3723 | -7/Zion | System corruption cleaned by Quarantine Array 3802 | -7/Zion | Build established: Scavenger-Mutant 3810 | -7/Zion | Learned location of Data Miner (-6) 3819 | -7/Zion | Learned location of Warlord (-4) 3930 | -7/Zion | Given A8's code to call for help 3983 | -7/Zion | Given the Hacking Drone Bay 3986 | -7/Zion | Found Prototype Device 4113 | -7/Zion | Met Imprinter 4131 | -7/Zion | Imprinted 4133 | -7/Zion | Declared Zion's savior 4217 | -7/Zion | Found CR-A16's Pointy Stick 4271 | -7/Zion | Learned location of 1 exit from Proximity Caves 4728 | -7/Zion | Entered Proximity Caves 4728 | -6/Proximity Caves | Accompanied by 4 allies 4749 | -6/Proximity Caves | Spotter reported a threat 4756 | -6/Proximity Caves | Learned Factory interactive machine intel 4802 | -6/Proximity Caves | Spotter reported a threat 4829 | -6/Proximity Caves | Learned 4 Factory zone layouts 4899 | -6/Proximity Caves | Entered Factory 4899 | -6/Factory | Evolved 2 slots: Propulsion x1, Weapon x1 4901 | -6/Factory | Loaded intel: 54 interactive machine locations 4967 | -6/Factory | Zion Fire squad teleported in 5028 | -6/Factory | P-60 Hacker assimilated allied NY-N82(i) 5116 | -6/Factory | Lost 3 allies 5125 | -6/Factory | Lost 5 parts (1p2n2u) 5129 | -6/Factory | Found Hvy. Reactive Plating 5138 | -6/Factory | Zion Light squad teleported in 5158 | -6/Factory | Activated Chronowheel 5158 | -6/Factory | Spacetime reconverged on an earlier point 5307 | -6/Factory | Found Prototype Protection 5307 | -6/Factory | Identified Zio. Weapon Casing 5386 | -6/Factory | Retrieved Zion intel report: Prototype Schematics 5387 | -6/Factory | Zion hero teleported in (99-TNT) 5427 | -6/Factory | Sucked down chute 5427 | -6/Factory | Entered Waste 5435 | -6/Waste | Spotted C-40 Crusher 5441 | -6/Waste | Destroyed C-40 Crusher 5452 | -6/Waste | 2 allies followed down the chute 5455 | -6/Waste | Warlord forces began an assault 5485 | -6/Waste | Spotted C-40 Crusher 5493 | -6/Waste | Allies destroyed C-40 Crusher 5498 | -6/Waste | Spotted C-40 Crusher 5504 | -6/Waste | Allies destroyed C-40 Crusher 5505 | -6/Waste | Spotted C-40 Crusher 5506 | -6/Waste | Spotted C-40 Crusher 5510 | -6/Waste | Allies destroyed C-40 Crusher 5514 | -6/Waste | Allies destroyed C-40 Crusher 5530 | -6/Waste | Spotted C-40 Crusher 5533 | -6/Waste | Lost 7 allies 5535 | -6/Waste | Allies destroyed C-40 Crusher 5540 | -6/Waste | Discovered new exit (range 13) 5552 | -6/Waste | Build established: Messiah-Gunner 5593 | -6/Waste | Entered Factory 5593 | -6/Factory | Accompanied by 13 allies (99-TNT) 5712 | -6/Factory | Lost 5 allies 5723 | -6/Factory | Zion Demo squad teleported in 5803 | -6/Factory | Found Prototype Launcher 5803 | -6/Factory | Identified Scatter Rocket Array 5806 | -6/Factory | Found Scatter Rocket Array 5822 | -6/Factory | Found Scatter Rocket Array 5823 | -6/Factory | Found Scatter Rocket Array 5824 | -6/Factory | Found Scatter Rocket Array 5865 | -6/Factory | Zion Fire squad teleported in 6013 | -6/Factory | Build established: Messiah-Mutant 6050 | -6/Factory | Retrieved Zion intel report: Branch Access 6050 | -6/Factory | Identified exit to Lower Caves 6056 | -6/Factory | Spotted B-75 Beast 6060 | -6/Factory | Allies destroyed B-75 Beast 6254 | -6/Factory | Retrieved Zion intel report: Active Garrisons 6262 | -6/Factory | Lost 3 allies 6293 | -6/Factory | First assault squad dispatched 6303 | -6/Factory | Entered Lower Caves 6303 | -6/Lower Caves | Accompanied by 9 allies (99-TNT) 6303 | -6/Lower Caves | Spotted 2P-XKS(f) 6303 | -6/Lower Caves | Spotted JO-MFS(f) 6304 | -6/Lower Caves | Firepult stolen by Master Thief 6305 | -6/Lower Caves | Allies destroyed 2P-XKS(f) 6305 | -6/Lower Caves | Encountered a Master Thief 6306 | -6/Lower Caves | Destroyed JO-MFS(f) 6309 | -6/Lower Caves | Spotted 4C-RRI(f) 6310 | -6/Lower Caves | Encountered a Master Thief 6311 | -6/Lower Caves | Allies destroyed 4C-RRI(f) 6419 | -6/Lower Caves | Learned 4 Factory zone layouts 6424 | -6/Lower Caves | Lost 3 allies 6450 | -6/Lower Caves | Discovered new exit (range 13) 6566 | -6/Lower Caves | Entered another Lower Caves area 6566 | -6/Lower Caves | Accompanied by 2 allies (99-TNT) 6643 | -6/Lower Caves | Discovered new exit (range 8) 6676 | -6/Lower Caves | Entered Data Miner 6676 | -6/Data Miner | Accompanied by 1 ally (99-TNT) 6679 | -6/Data Miner | Discovered new exit (range 6) 6688 | -6/Data Miner | Met Data Miner 6699 | -6/Data Miner | Learned location of Section 7 (-2) 6699 | -6/Data Miner | Acquired the access code to Warlord's prototype stash 6707 | -6/Data Miner | Received God Mode back door access code from Data Miner 6729 | -6/Data Miner | Entered Proximity Caves 6729 | -5/Proximity Caves | Accompanied by 1 ally (99-TNT) 6800 | -5/Proximity Caves | Attracted the attention of an 0b10 base 6815 | -5/Proximity Caves | Learned Armory terminal intel 6815 | -5/Proximity Caves | Learned Extension stockpile data 6815 | -5/Proximity Caves | Identified exit to Factory 6815 | -5/Proximity Caves | Learned location of 2 exits from Upper Caves 6900 | -5/Proximity Caves | Attracted the attention of an 0b10 checkpoint 6931 | -5/Proximity Caves | Learned Factory stockpile data 6970 | -5/Proximity Caves | Entered Factory 6970 | -5/Factory | Accompanied by 1 ally (99-TNT) 6970 | -5/Factory | Evolved 2 slots: Utility x2 6971 | -5/Factory | Identified exit to Extension 7086 | -5/Factory | Found Launcher Loader 7095 | -5/Factory | Zion Light squad teleported in 7182 | -5/Factory | Found Zio. Weapon Casing 7219 | -5/Factory | Enhanced Grunt warped into view, answering call for help 7220 | -5/Factory | Enhanced Grunt warped into view, answering call for help 7227 | -5/Factory | Zion Fire squad teleported in 7270 | -5/Factory | First assault squad dispatched 7278 | -5/Factory | Lost 6 allies 7279 | -5/Factory | Lost 5 parts (2n1u2w) 7390 | -5/Factory | Garrison activated, responded to threat 7394 | -5/Factory | Discovered exit to Extension (range 14) 7404 | -5/Factory | Entered Extension 7404 | -5/Extension | Accompanied by 1 ally (99-TNT) 7425 | -5/Extension | Disrupted transfer network 7558 | -5/Extension | Rescued a captive Derelict 7558 | -5/Extension | Rescued a captive Derelict 7569 | -5/Extension | Zion Hacker squad teleported in 7577 | -5/Extension | Rescued A7 7624 | -5/Extension | Spotted B-75 Beast 7627 | -5/Extension | Spotted B-75 Beast 7633 | -5/Extension | Destroyed B-75 Beast 7647 | -5/Extension | Destroyed B-75 Beast 7662 | -5/Extension | Lost 5 allies 7698 | -5/Extension | Discovered new exit (range 16) 7698 | -5/Extension | Discovered new exit (range 16) 7716 | -5/Extension | Identified exit to Cetus 7831 | -5/Extension | Entered Cetus 7831 | -5/Cetus | Accompanied by 7 allies (A7) 7836 | -5/Cetus | Acquired a Cetus Manufacturing Module code from A7 7841 | -5/Cetus | Spotted Cetus Guard 7842 | -5/Cetus | Spotted Cetus Guard 7849 | -5/Cetus | Spotted Cetus Guard 7851 | -5/Cetus | Destroyed Cetus Guard 7856 | -5/Cetus | Spotted Cetus Guard 7856 | -5/Cetus | Allies destroyed Cetus Guard 7867 | -5/Cetus | Allies destroyed Cetus Guard 7875 | -5/Cetus | Allies destroyed Cetus Guard 7936 | -5/Cetus | System corruption reached 10% 8097 | -5/Cetus | Escorted A7 to Cetus Mainframe 8141 | -5/Cetus | Started Cetus Manufacturing Module 8166 | -5/Cetus | Manufactured an Enhanced Grunt 8191 | -5/Cetus | Manufactured an Enhanced Grunt 8216 | -5/Cetus | Manufactured an Enhanced Grunt 8241 | -5/Cetus | Manufactured an Enhanced Grunt 8266 | -5/Cetus | Manufactured an Enhanced Grunt 8423 | -5/Cetus | Discovered new exit (range 16) 8466 | -5/Cetus | Entered Archives 8466 | -5/Archives | Accompanied by 11 allies (A7) 8471 | -5/Archives | Received a hacking code to weaken MAIN.C 8549 | -5/Archives | Discovered new exit (range 15) 8618 | -5/Archives | Discovered new exit (range 14) 8709 | -5/Archives | Discovered new exit (range 16) 8787 | -5/Archives | Build established: Scavenger-Tank 8859 | -5/Archives | Entered Hub_04(d) 8859 | -5/Hub_04(d) | Accompanied by 8 allies 8925 | -5/Hub_04(d) | Discovered new exit (range 16) 9032 | -5/Hub_04(d) | Lost 4 allies 9118 | -5/Hub_04(d) | Spotted B-75 Beast 9121 | -5/Hub_04(d) | Zion Hacker squad teleported in 9121 | -5/Hub_04(d) | Garrison activated, responded to threat 9141 | -5/Hub_04(d) | Destroyed B-75 Beast 9209 | -5/Hub_04(d) | Network Hub disabled 9298 | -5/Hub_04(d) | Retrieved Zion intel report: Prototype Stockpiles 9313 | -5/Hub_04(d) | Discovered new exit (range 14) 9449 | -5/Hub_04(d) | Spotted Lightning 9454 | -5/Hub_04(d) | Spotted Lightning 9459 | -5/Hub_04(d) | First assault squad dispatched 9470 | -5/Hub_04(d) | Entered Factory 9470 | -4/Factory | Evolved 2 slots: Power x1, Propulsion x1 9471 | -4/Factory | Identified exit to Research 9743 | -4/Factory | Fabricated Enh. Hardcell Cannon (x2) 10220 | -4/Factory | First assault squad dispatched 10229 | -4/Factory | Entered Research 10229 | -3/Research | Evolved 2 slots: Utility x2 10245 | -3/Research | Zion Zionite Resupply teleported in 10517 | -3/Research | Garrison activated, responded to threat 10587 | -3/Research | Lost 3 parts (2u1w) 10621 | -3/Research | Destroyed 12 combat bots 10979 | -3/Research | First assault squad dispatched 10991 | -3/Research | Found Fusion Bomb Launcher 11025 | -3/Research | Build established: Scavenger-Gunner 11246 | -3/Research | Incoming assault squad redirected 11390 | -3/Research | Core integrity fell below 50% 11407 | -3/Research | Core integrity fell below 20% 11455 | -3/Research | Lost 14 parts (2p3n5u4w) 11457 | -3/Research | Destroyed by G-67 Veteran with Plasma Rifle Last Messages --------------- 11406_ Flexi-carbon Leg melted. 11406_ Adv. Heat Sink melted. 11406_ Lgt. Antimatter Reactor melted. 11407_ Knocked back. 11408_ Penetrated by Slug. 11409_ G-67 Veteran heat damages Adv. Heat Sink, Plasma Rifle, Field Laser. 11411_ Adv. Target Analyzer severed. 11424_ Imp. Targeting Computer destroyed. 11424_ Fusion Bomb Launcher destroyed. 11426_ C-35 Carver destroyed. 11428_ S-43 Plague knocked back. 11430_ Destroyed Xenon Bombardment Thruster. 11430_ S-43 Plague destroyed. 11434_ Acquired Imp. Surge Thruster. 11444_ Acquired Mic. Nuclear Core. 11445_ Acquired 11 matter. 11445_ Acquired 24 matter. 11446_ Acquired Imp. Reaction Control System. 11448_ Slug penetrates Wall. Map ----- +----------------------------------------------------+ | ??????????????????????????????????????? | | ??????????????????????????????????????? | | ??????????????????????????????????????? | | ??????????????????????????????????????? | | ??????????????????????????????????????? | | ??????????????????????????????????????? | | ??? ????????????????????????????????? | | ??? #??????????????????????????????? | | ??? #??????????????????????????????? | | ??? #??????????????????????????????? | | ??? +?????????#######??????????????? | | ??? #?????????#= #??????????????? | | ??? #?????????# #??????????????? | | #?#%= #?????????# #??????????????? | | ?#% #?????????# #??????????????? | | # #?????????# #########??????? | | # #?????????# ##] #??????? | | # #?????????? ?# #??????? | | ##??????????#+#### = #??????? | | # #??###?????# + #??????? | | ?? ?????# # #??????? | | #? ???#### # #??????? | | ? # """???# ##+########???? | | ## # """???# l # #???? | | ??????# g g # #???? | | #????????# g @ + #???? | | #????????# #####+#### #???? | | #????????# #????????? #???? | | ### #????????# #?????????? #???? | | ??# #????????# #??????????######???? | | ??# ########## ####????????????????? | | ??# #????????????????? | | ??# #????????????????? | | ??# #????????????????? | | ??# #????????????????? | | ??## ####+####### #????????????????? | | ???# #?# # #????????????????? | | ???# #?# + #????????????????? | | ???# #?# ### #????????????????? | | ???# #?# """ #?# #????????????????? | | ??? ?#! """ #?# #????????????????? | | ## # """ #?# #????????????????? | | # ### #????????????????? | | ## =# / #????????????????? | | ?# ???# ### #????????????????? | | ???? ???##########?# #????????????????? | | ???????????????????# #????????????????? | | ???????????????????# #????????????????? | | ???????????????????# #????????????????? | | ???????????????????# #????????????????? | +----------------------------------------------------+ Best States ------------- Heat Dissipation 73 Energy Generation 48 Energy Capacity 865 Matter Stores 450 Matter Capacity 450 Sight Range 16 Robot Scan Range 15 Terrain Scan Density 210 ECM Strength 1 Power Amplification 20 EM Shielding 4 Armor Coverage 1350 Resistance: KI 25 Core Shielding 30 Propulsion Shielding 66 Weapon Shielding 100 Evasion (%) 74 Targeting Accuracy 14 Target Analysis 12 Core Analysis 9 Recoil Reduction 6 Salvage Targeting 1 Defensive Hacking 12 Item Schematics ----------------- Imp. Shield Generator | -7/Zion | Archive Remote Datajack | -7/Zion | Archive Adv. Terrain Scanner | -7/Zion | Archive Recalibrator | -7/Zion | Archive Enh. Optical Array | -7/Zion | Archive Stasis Canceller | -7/Zion | Archive Imp. Medium Armor Plating | -7/Zion | Archive Energy Well | -7/Zion | Archive Imp. Field Recycling Unit | -7/Zion | Archive Hyp. Gauss Rifle | -7/Zion | Archive Med. Insulated Plating | -7/Zion | Archive Hyp. Coil Gun | -7/Zion | Archive Antigrav System | -7/Zion | Archive Cld. Pulse Rifle | -6/Factory | Z-intel Imp. VTOL Module | -6/Factory | Z-intel Cld. Cesium-ion Thruster | -6/Factory | Z-intel Cld. Particle Cannon | -6/Factory | Z-intel Adv. Beam Rifle | -6/Factory | Z-intel Cold Fusion Reactor | -6/Factory | Z-intel Gravity Neutralizer | -6/Factory | Z-intel Hpw. Field Laser | -6/Factory | Z-intel Combat Drone Bay | -6/Data Miner | Free Lgt. Regenerative Plating | -6/Data Miner | Free Enh. Flexi-carbon Leg | -6/Data Miner | Free Prc. Energy Filter | -6/Data Miner | Free Tesla Bomb Launcher | -6/Data Miner | Free Impulse Thruster | -6/Data Miner | Free Imp. Phase Shifter | -6/Data Miner | Free HERF Cannon | -6/Data Miner | Free Nuclear Pulse Array | -6/Data Miner | Free Imp. Armor Integrity Analyzer | -6/Data Miner | Free Antigrav Array | -6/Data Miner | Free Adv. Launcher Guidance Computer | -6/Data Miner | Free Robot Schematics ------------------ W-25 Informer | -7/Zion | Archive X-82 Rainmaker | -7/Zion | Archive B-48 Gladiator | -7/Zion | Archive R-06 Scavenger | -7/Zion | Archive Y-64 Sentinel | -6/Data Miner | Free H-66 Slayer | -6/Data Miner | Free B-60 Warrior | -6/Data Miner | Free A-15 Conveyor | -6/Data Miner | Free R-10 Processor | -6/Data Miner | Free Fabricated ------------ Enh. Hardcell Cannon | x2 | -4/Factory | Preloaded Repaired ---------- Nothing Alien Tech Used ----------------- None Achievements -------------- None Challenges ------------ None Game ------ Seed BattleMetafieldJetlance Manual? 0 Play Time 01:40:40 Cumulative 1017.9 hours Start 2025.05.06 @ 12:37:30 End 2025.05.06 @ 14:27:29 Sessions 1 Manual Loads 0 Difficulty Rogue Special Mode None Game No. 1243 Rogue 961 Adventurer 124 Explorer 158 Win Type - Total 44 Types 31/0/8/3/1/0/0/1/0/0 Lore% 90 Gallery% 85 Achievement% 79 Wizard Run 0 Options --------- Layout 0 ASCII 0 Keyboard 1 Movement Numpad Keybinds 0 Fullscreen 2 Font 18/X11 Map View 76x50 Zoom Use 0% Tactical HUD 1 Map Filters NONE Filters NONE Steam 1 RUN: fa1e7295-f798-4ab5-a10d-96981cfb70fd